[Event "Polish Youth B18 Championship 2023"]
[Site "Jastrzebia Gora"]
[Date "2023.03.13"]
[Round "3.13"]
[White "Kozlowski, Franciszek"]
[Black "Budzisz, Adrian"]
[Result "0-1"]
[ECO "D45"]
[WhiteElo "1829"]
[BlackElo "2069"]
[Annotator "TA"]
[PlyCount "96"]
[EventDate "2023.03.11"]
[EventType "swiss"]
[EventCountry "POL"]
[SourceTitle "playchess.com"]
[Source "ChessBase"]
[SourceQuality "1"]
[TimeControl "40/5400+30:1800+30"]

{[%evp 23,96,43,37,30,32,8,46,32,39,28,41,33,65,24,30,27,44,45,62,24,47,0,0,0,-12,-12,-9,-12,-12,-14,0,0,0,0,0,0,0,0,0,0,0,0,0,0,8,8,94,21,21,0,0,-110,-110,-110,-111,-112,-112,-113,-113,-420,-420,-519,-535,-608,-612,-558,-541,-1141,-636,-29963,-29958,-29987,-29988,-29993,-29994]} 1. d4 {[%emt 0:00:10]} Nf6 {[%emt 0:00:13]} 2. Nf3 {[%emt 0:00:13]} e6 {[%emt 0:00:08]} 3. c4 {[%emt 0:01:21]} d5 {[%emt 0:00:08]} 4. e3 {[%emt 0:00:33]} c6 {[%emt 0:01:37]} 5. Nc3 {[%emt 0:00:43]} Nbd7 {[%emt 0:00:42]} 6. Qc2 {[%emt 0:00:29]} Bd6 {[%emt 0:00:50]} 7. Be2 {[%emt 0:01:17]} O-O {[%emt 0:00:16]} 8. O-O {[%emt 0:00:14]} a6 {[%emt 0:01:33]} 9. b3 {[%emt 0:01:28]} Qe7 {[%emt 0:00:38]} 10. Bb2 {[%emt 0:02:05]} e5 {[%emt 0:04:16]} 11. dxe5 {[%emt 0:01:04]} Nxe5 {[%emt 0:00:08]} 12. cxd5 {[%emt 0:00:24]} cxd5 {[%emt 0:01:38]} 13. Rfd1 {[%emt 0:00:30] D45: Semi-Slav: 5 e3.} Be6 {[%emt 0:09:30]} 14. Nd4 {[%emt 0:09:56]} Ba3 {[%emt 0:08:39]} 15. Bxa3 {[%emt 0:03:53] White is slightly better.} (15. Nxd5 {is interesting.} Nxd5 16. Nxe6 Rfc8 17. Bxa3 Rxc2 18. Bxe7 fxe6 19. Bd6) 15... Qxa3 {[%emt 0:00:05]} 16. Qc1 {[%emt 0:00:07] [#]} Qa5 $146 {[%emt 0:04:09]} ({Predecessor:} 16... Qxc1 17. Raxc1 Rac8 18. Na4 Rxc1 19. Rxc1 Rc8 20. Rxc8+ Bxc8 21. f3 h5 22. Kf2 Kf8 {1-0 Wojtaszek,R (2536)-Sulashvili,M (2326) Wch U18 Heraklion 2004 (11)}) 17. Qb2 {[%emt 0:00:37] Nxe6 would be deadly.} Rfe8 {[%emt 0:09:26]} 18. Nb1 {[%emt 0:07:27]} Rac8 {[%emt 0:07:58]} 19. Nd2 {[%emt 0:00:59]} Ne4 {[%emt 0:06:50]} 20. Nxe4 {[%emt 0:00:57]} dxe4 {[%emt 0:00:05]} 21. Rac1 {[%emt 0:07:57]} Bg4 {[%emt 0:06:06]} (21... Rxc1 {simplifies} 22. Rxc1 g6 23. h3 Bd5) 22. Bxg4 {[%emt 0:03:07]} (22. b4 $14 Qb6 23. Bxg4 Rxc1 24. Rxc1 Nxg4 25. Nf5) 22... Nxg4 $11 {[%emt 0:01:29]} 23. b4 {[%emt 0:00:57]} Qe5 {[%emt 0:00:33]} 24. g3 $1 {[%emt 0:01:22]} Qh5 {[%emt 0:00:30]} 25. h4 {[%emt 0:00:28]} Ne5 {[%emt 0:00:55] And now ...Nd3 would win.} 26. Qe2 {[%emt 0:02:00] Dodges Nd3} Qg6 {[%emt 0:02:45]} 27. Rxc8 $40 {[%emt 0:06:09][%mdl 128] White mounts an attack.} Rxc8 {[%emt 0:00:34]} 28. Rd2 {[%emt 0:01:45]} Qd6 {[%emt 0:12:08]} 29. Rc2 {[%emt 0:01:07]} Rd8 {[%emt 0:00:14]} 30. a3 {[%emt 0:00:57]} h6 {[%emt 0:00:56]} 31. Kg2 {[%emt 0:02:04]} g6 {[%emt 0:02:30]} 32. h5 {[%emt 0:04:21]} Kg7 {[%emt 0:00:41]} 33. hxg6 {[%emt 0:00:24]} fxg6 {[%emt 0:01:05]} 34. Rc7+ {[%emt 0:00:17][%mdl 64] Double Attack} (34. Rc5 {feels hotter.} Nd3 35. Qg4 Qf6 36. Rc7+) 34... Kh8 {[%emt 0:00:22] [#]} (34... Rd7 $1 $11 35. Rxd7+ Qxd7) 35. Rxb7 {[%emt 0:00:59]} (35. Qc2 $1 $16) 35... Rf8 $1 {[%emt 0:01:18]} 36. Qb2 {[%emt 0:05:31][%cal Od4c6] aiming for Nc6!} (36. Qc2 $5 {[%cal Rc2e4]} Nd3 37. Qc3 $11) 36... Qf6 {[%emt 0:01:51] Against Nc6} 37. Nc6 {[%emt 0:05:55]} Nxc6 $17 {[%emt 0:01:50]} 38. Qxf6+ {[%emt 0:00:08]} Rxf6 {[%emt 0:00:06][%mdl 4096] Endgame KRN-KR} 39. Rb6 {[%emt 0:00:04]} Kg7 {[%emt 0:00:25] Hoping for ...Ne5.} 40. Rxa6 {[%emt 0:00:00]} Ne5 {[%emt 0:00:00]} 41. Ra7+ {[%emt 0:06:50][%mdl 8192] [#] White does not recover from this.} (41. b5 $17 {was the crucial defense.}) 41... Rf7 $1 $19 {[%emt 0:00:14][%cal Bf6f7,Bf7f2,Bf2b2][%mdl 32]} 42. Ra8 {[%emt 0:02:34]} Nd3 {[%emt 0:01:32]} 43. b5 {[%emt 0:01:53]} Rxf2+ {[%emt 0:00:06]} ({Stronger than} 43... Nxf2 44. b6 Ng4 45. Ra7 $11) 44. Kg1 {[%emt 0:00:53]} Rb2 {[%emt 0:00:13][%cal Og7f6] Threatens to win with ...Kf6!} 45. a4 {[%emt 0:00:26]} Kf6 {[%emt 0:00:13] ( -> ...Kf5)} 46. Rb8 {[%emt 0:02:06]} Kf5 {[%emt 0:01:35] Black mates.} 47. a5 {[%emt 0:02:03]} Kg4 {[%emt 0:00:07]} 48. b6 {[%emt 0:00:45]} Kxg3 {[%emt 0:00:12] Weighted Error Value: White=0.58/Black=0.08 (flawless)} 0-1

[Event "Polish Youth B18 Championship 2023"]
[Site "Jastrzebia Gora"]
[Date "2023.03.13"]
[Round "3.14"]
[White "Kotowicz, Kamil"]
[Black "Stachecki, Mikolaj"]
[Result "1/2-1/2"]
[ECO "D30"]
[WhiteElo "1828"]
[BlackElo "2015"]
[Annotator "TA"]
[PlyCount "100"]
[EventDate "2023.03.11"]
[EventType "swiss"]
[EventCountry "POL"]
[SourceTitle "playchess.com"]
[Source "ChessBase"]
[SourceQuality "1"]
[TimeControl "40/5400+30:1800+30"]

{[%evp 13,100,4,10,2,28,11,15,3,20,5,22,7,16,22,22,0,42,0,40,40,34,16,10,5,6,0,0,0,26,23,29,0,0,0,2,12,30,20,27,24,72,47,50,69,87,77,110,111,111,100,116,126,147,96,202,185,251,240,258,197,414,409,466,385,502,465,455,287,428,214,214,214,214,214,214,206,214,198,211,0,0,0,0,0,0,0,0,0,0]} 1. d4 {[%emt 0:00:12]} d5 {[%emt 0:00:26]} 2. c4 {[%emt 0:00:03]} e6 {[%emt 0:00:21]} 3. cxd5 {[%emt 0:00:04]} exd5 {[%emt 0:00:50]} 4. Bf4 {[%emt 0:00:06]} Bd6 {[%emt 0:00:56]} 5. Bxd6 {[%emt 0:01:20]} Qxd6 {[%emt 0:00:07]} 6. e3 {[%emt 0:00:47]} Bf5 {[%emt 0:09:22]} 7. Nc3 {[%emt 0:02:46]} c6 {[%emt 0:00:36]} 8. Bd3 {[%emt 0:03:17] D31: Queen's Gambit Declined: Semi-Slav without ...Nf6 (+ Marshall Gambit and Noteboom) and Exchange Variation lines without ...Nf6.} Bg6 {[%emt 0:11:36]} 9. Nge2 {[%emt 0:03:54]} Nf6 {[%emt 0:01:12]} 10. Nf4 {[%emt 0:01:19]} O-O {[%emt 0:02:05]} 11. O-O {[%emt 0:02:47]} Nbd7 {[%emt 0:03:04] [#]} 12. Rb1 $146 {[%emt 0:01:50]} ({Predecessor:} 12. Re1 Rfe8 13. Bxg6 hxg6 14. a3 a5 15. Qc2 b5 16. Rec1 a4 17. h3 g5 18. Nfe2 {0-1 Kelmendi,A (2112)-Asllani,M (2172) KOS Cup Pristina 2020 (3.2)}) 12... Rfe8 {[%emt 0:11:24]} 13. Nxg6 {[%emt 0:03:15]} hxg6 {[%emt 0:00:11]} 14. b4 {[%emt 0:01:41]} Rad8 {[%emt 0:07:58]} 15. Re1 {[%emt 0:05:32]} Ne4 {[%emt 0:01:12]} 16. Bxe4 {[%emt 0:01:45]} dxe4 {[%emt 0:00:12]} 17. Qe2 {[%emt 0:04:20]} Nf6 {[%emt 0:02:21]} 18. Rec1 {[%emt 0:00:31]} Rc8 {[%emt 0:02:57]} 19. a3 {[%emt 0:02:26]} g5 {[%emt 0:05:28]} 20. Na4 {[%emt 0:01:35][%cal Bc3a4,Ba4b2,Bb2c4][%mdl 32]} b6 {[%emt 0:00:27]} 21. Nb2 {[%emt 0:01:32]} Red8 {[%emt 0:04:59]} 22. Rd1 {[%emt 0:03:25]} Qe7 {[%emt 0:02:50]} 23. Rbc1 {[%emt 0:07:01]} g6 {[%emt 0:04:58]} 24. Rc2 {[%emt 0:03:32]} Rc7 {[%emt 0:01:55]} 25. Rdc1 {[%emt 0:01:02]} Rdc8 {[%emt 0:00:09]} 26. Nc4 {[%emt 0:04:35]} c5 {[%emt 0:08:27]} (26... Kg7 $11 {should be considered.}) 27. dxc5 $16 {[%emt 0:00:55]} bxc5 {[%emt 0:00:06]} 28. b5 {[%emt 0:00:07]} Nd7 {[%emt 0:01:26]} 29. Rd1 {[%emt 0:02:16]} Ne5 {[%emt 0:00:40]} 30. Nxe5 {[%emt 0:00:45]} Qxe5 {[%emt 0:00:29]} 31. Qc4 {[%emt 0:01:59]} Qe7 {[%emt 0:05:08]} 32. Rcd2 {[%emt 0:01:11] Prevents Rd8.} Kg7 {[%emt 0:01:32]} 33. g3 {[%emt 0:00:55]} (33. Rd6 $142) 33... Rh8 {[%emt 0:01:15]} (33... Qe6 $16 34. Rd5 g4) 34. a4 $18 {[%emt 0:02:05]} Qf6 {[%emt 0:01:50]} (34... Rb8 {might work better.} 35. Kg2 Rb6) 35. Qxe4 {[%emt 0:01:56]} Re7 {[%emt 0:01:45]} 36. Qd5 {[%emt 0:08:09]} g4 $2 {[%emt 0:04:31]} (36... Rc8 37. Rc1 Rec7) 37. Qxc5 {[%emt 0:03:25]} Re5 {[%emt 0:00:40]} 38. Qd4 {[%emt 0:01:11]} Qf5 {[%emt 0:01:05]} 39. h4 {[%emt 0:11:18]} g5 {[%emt 0:02:06]} 40. Qd7 {[%emt 0:00:00]} (40. Qxa7 gxh4 41. gxh4 Rxh4 $18) 40... Qf3 {[%emt 0:00:00]} (40... gxh4 {keeps fighting.} 41. Qxf5 (41. Qxa7 hxg3 42. Qb7 Rh2 $19) 41... Rxf5) 41. Rd4 {[%emt 0:17:03]} (41. Qxa7 $2 gxh4 42. Rd7 hxg3 $19) (41. Rd5 $142 Rhe8 42. R1d4 (42. hxg5 Rh8)) 41... Rf5 {[%emt 0:06:20]} 42. R1d2 {[%emt 0:02:36]} (42. Qxa7 Qxf2+ 43. Kh1 Qxg3) (42. R4d2 gxh4 43. Qc6 (43. Qxa7 hxg3 44. Qd4+ Rf6) (43. Qd4+ $2 Kh7 $19) 43... hxg3 44. Qxf3 Rxf3 $11) 42... gxh4 {[%emt 0:03:59]} 43. Qc6 {[%emt 0:02:07] aiming for Qxf3. Active counter play!} (43. Qxa7 $2 {is the wrong capture.} hxg3 $19) 43... hxg3 {[%emt 0:04:04][%csl Gf3][%cal Rh8h1]} 44. Qxf3 {[%emt 0:00:10]} gxf3 {[%emt 0:00:20][%mdl 4096] Endgame [#] KRR-KRR} 45. Rg4+ $1 {[%emt 0:00:33]} ({Don't take} 45. fxg3 $6 Rg5 $16) 45... Kf6 {[%emt 0:00:29] Hoping for ...g2.} 46. Rxg3 {[%emt 0:01:02]} (46. fxg3 $18 {Rc2 is the strong threat.} Rh3 47. Rc2) 46... Ke5 $11 {[%emt 0:05:27] The position is equal.} 47. Rd4 {[%emt 0:06:37]} Rfh5 {[%emt 0:01:21][%csl Gh8][%cal Rh5h1]} 48. Kf1 {[%emt 0:00:21]} (48. Rxf3 $5 Rh1+ $8 49. Kg2 R8h2+ 50. Kg3 Rh3+ 51. Kg4 Rh4+ 52. Kg3 R4h3+ 53. Kg4 Rh4+ 54. Kg3 R4h3+ $11) 48... Rh1+ {[%emt 0:01:04]} 49. Rg1 {[%emt 0:00:01]} Rc8 {[%emt 0:03:10] [#] ( -> ...Rc1+)} 50. Rd1 {[%emt 0:00:05] Prevents Rc1} (50. Rxh1 $2 {is a self mate.} Rc1+) 50... Rh2 {[%emt 0:00:08] Weighted Error Value: White=0.29 (precise) /Black=0.32} 1/2-1/2

[Event "Polish Youth B18 Championship 2023"]
[Site "Jastrzebia Gora"]
[Date "2023.03.13"]
[Round "3.15"]
[White "Pieczulis, Blazej"]
[Black "Syrkiewicz, Michal"]
[Result "0-1"]
[ECO "E10"]
[WhiteElo "1784"]
[BlackElo "2000"]
[Annotator "TA"]
[PlyCount "134"]
[EventDate "2023.03.11"]
[EventType "swiss"]
[EventCountry "POL"]
[SourceTitle "playchess.com"]
[Source "ChessBase"]
[SourceQuality "1"]
[TimeControl "40/5400+30:1800+30"]

{[%evp 9,134,14,14,4,10,2,20,17,28,0,0,0,0,0,0,0,12,0,28,14,25,-6,-14,-16,-17,-39,-31,-45,-17,-20,-14,-147,-12,-51,12,8,8,0,25,-99,-95,-124,-125,-292,-286,-278,-272,-333,-308,-291,-258,-290,-297,-274,-261,-478,-454,-705,-629,-664,-646,-592,-537,-815,-808,-858,-556,-627,-602,-575,-520,-621,-584,-566,-547,-581,-558,-615,-589,-758,-727,-746,-681,-781,-770,-738,-741,-798,-806,-919,-697,-631,-464,-637,-589,-1311,-1273,-1289,-1015,-982,-908,-1104,-1040,-2918,-2518,-29971,-29972,-29972,-29972,-29969,-29972,-29982,-29983,-29983,-29984,-29986,-29979,-29978,-29981,-29981,-29982,-29988,-29985,-29985,-29986,-29986,-29982]} 1. d4 Nf6 2. c4 e6 3. Nf3 d5 4. e3 a6 5. Nbd2 c5 6. Be2 {D30: Queen's Gambit Declined: Systems without Nc3.} cxd4 7. Nxd4 Bd6 8. cxd5 {The position is equal.} exd5 9. N2f3 O-O 10. O-O Nc6 11. b3 Ne4 12. Bb2 Re8 13. Rc1 {[#]} Ne5 $146 ({Predecessor:} 13... Qf6 14. g3 Bh3 15. Re1 Qh6 16. Nxc6 bxc6 17. Bd3 Bb4 18. Re2 Bg4 19. Ne5 Bxe2 20. Bxe2 {0-1 Della Corte,A (2160)-Mikaelyan,A (2504) Titled Tuesday intern op 31st Jan Late blitz 2023 (2)}) 14. Nxe5 Bxe5 15. f4 Bc7 16. Bg4 Bb6 17. Bxc8 Rxc8 18. Qd3 Qd7 19. Rxc8 Rxc8 20. Nf3 {[#]} (20. h3 $11) 20... f6 (20... Qb5 $1 $17 {[%cal Rb5d3]} 21. Qxb5 Bxe3+ 22. Kh1 axb5) 21. Rd1 {[%cal Og1f1]} Rd8 (21... Qb5 $15 22. Qxb5 Bxe3+ 23. Kf1 axb5 24. Rxd5 Rc2) 22. Bd4 $11 Qc6 23. Kf1 Kf7 24. Nd2 (24. Bxb6 $11 Qxb6 25. Nd2 Nxd2+ 26. Rxd2) 24... Bxd4 $17 25. Qxd4 {And now Nxe4 would win.} Nc3 {[%cal Be4c3,Bc3a2,Ba2b4,Bb4d3][%mdl 32] Black is more active.} 26. Rc1 {This costs White the game.} (26. Re1 $17 {was worth a try.}) 26... Qb5+ $19 27. Nc4 Nxa2 28. Ra1 Qxb3 29. Nd2 Qb5+ 30. Kf2 Nb4 {...Nc2 would be deadly.} 31. Qc3 {Against Nc2} Rd7 {[%cal Od5d4]} 32. Nb3 $2 (32. Kg3) 32... Nd3+ 33. Kg3 (33. Kf3 $142 d4 34. Nxd4 Qd5+ 35. Kg3) 33... Qc4 34. Qxc4 dxc4 {[%mdl 4096] Endgame KRN-KRN} 35. Nd4 Rd6 36. Rb1 b5 {[%cal Od6d4]} 37. Kf3 Rb6 38. Ke4 g6 39. g4 Ke7 40. h4 Kd6 41. f5 Nc5+ 42. Kf4 b4 43. fxg6 hxg6 {Hoping for ...c3.} 44. h5 gxh5 45. gxh5 Ne6+ 46. Ke4 Ng5+ 47. Kf5 Kc5 48. h6 c3 49. Nb3+ Kb5 {aiming for ...Kc4.} 50. e4 Nh7 51. Kg6 Rb7 {Threatens to win with ...a5.} 52. Nd4+ Kc4 53. Nf5 Kd3 54. Rd1+ Ke2 (54... Kxe4 55. Nd6+ Ke5 56. Nxb7 Nf8+ 57. Kf7 $18) 55. Rh1 c2 56. Ng7 Nf8+ 57. Kxf6 Kd2 {Black mates.} 58. Rh2+ Kc3 59. Rh1 Kb2 60. e5 c1=Q {[%mdl 64] Promotion} 61. Rxc1 Kxc1 62. e6 {[#]} Nxe6 $1 63. h7 {[#]} (63. Nxe6 b3) 63... Rb8 $1 64. Nxe6 b3 {[%cal Bb4b3,Bb3b2][%mdl 32]} 65. Kf7 Rh8 66. Kg7 {[#]} Rxh7+ $3 {[%mdl 576] Promotion} 67. Kxh7 b2 {Excellently played by Syrkiewicz!   Weighted Error Value: White=0.54/Black=0.31} 0-1

[Event "Polish Youth B18 Championship 2023"]
[Site "Jastrzebia Gora"]
[Date "2023.03.13"]
[Round "3.16"]
[White "Biesiadecki, Adam"]
[Black "Kitewski, Bartosz"]
[Result "1-0"]
[ECO "D97"]
[WhiteElo "1761"]
[BlackElo "1968"]
[Annotator "TA"]
[PlyCount "125"]
[EventDate "2023.03.11"]
[EventType "swiss"]
[EventCountry "POL"]
[SourceTitle "playchess.com"]
[Source "ChessBase"]
[SourceQuality "1"]
[TimeControl "40/5400+30:1800+30"]

{[%evp 14,125,31,26,41,38,14,-10,0,-21,-12,0,-14,-9,23,37,79,101,92,87,81,80,92,62,102,112,122,106,109,57,58,54,54,54,54,54,73,59,79,58,68,52,89,89,95,96,97,89,89,57,97,97,101,100,106,106,106,106,110,105,140,121,279,213,213,213,213,213,213,218,219,214,431,425,425,395,406,393,393,385,362,291,309,244,472,470,933,934,641,877,856,847,817,839,575,524,912,873,1237,1178,1876,1598,2411,2151,2090,1976,1880,1867,5635,5714,29961,6295,5652,5032]} 1. d4 {[%emt 0:00:02]} Nf6 {[%emt 0:00:06]} 2. c4 {[%emt 0:00:07]} g6 {[%emt 0:00:05]} 3. Nc3 {[%emt 0:00:13]} d5 {[%emt 0:00:08]} 4. Nf3 {[%emt 0:03:08]} Bg7 {[%emt 0:00:06]} 5. Qb3 {[%emt 0:01:25]} dxc4 {[%emt 0:02:04]} 6. Qxc4 {[%emt 0:00:06]} O-O {[%emt 0:00:13]} 7. e4 {[%emt 0:01:25]} Nc6 {[%emt 0:01:06]} 8. Be2 {[%emt 0:06:44]} e5 {[%emt 0:05:05][%cal Re5d4] seems to push 8...Bg4 aside. D97: Grünfeld: Russian System: 7 e4, replies other than 7...Bg4.} 9. d5 {[%emt 0:02:25]} (9. Nxe5 Nxd4 10. O-O Nxe4 11. Nxe4 Be6 $17) (9. dxe5 Ng4 $11) 9... Nd4 {[%emt 0:01:52]} 10. O-O {[%emt 0:03:43] [#]} (10. Nxe5 $2 Nc2+ 11. Kf1 Nxa1 $19) 10... b5 $1 {[%emt 0:24:00][%cal Bb7b5,Bb5b4][%mdl 32] The position is equal.} 11. Qd3 {[%emt 0:06:18]} (11. Nxb5 Nxb5) 11... b4 {[%emt 0:04:22]} 12. Nxd4 {[%emt 0:02:38]} (12. Nxe5 c5 13. Nd1 Nxd5 $17) 12... exd4 {[%emt 0:00:55] [#]} 13. Na4 $146 {[%emt 0:01:56]} ({Predecessor:} 13. Nb5 Ba6 14. a4 bxa3 15. Qxa3 Bxb5 16. Bxb5 Nxe4 17. Bc6 Rb8 18. Qf3 Nc5 19. Rxa7 {0-1 Hasterok,M (1900)-Peng,L (2451) Raciborz op 19th 2019 (2)}) 13... Re8 {[%emt 0:03:09]} 14. Bg5 {[%emt 0:01:29]} Qd7 {[%emt 0:00:50]} 15. Bxf6 {[%emt 0:01:38]} Bxf6 {[%emt 0:00:25]} 16. Nc5 {[%emt 0:00:43]} Qd6 {[%emt 0:05:16]} 17. Rac1 {[%emt 0:01:00]} Bg5 {[%emt 0:07:19]} 18. Rc2 {[%emt 0:03:00]} f5 {[%emt 0:03:16]} 19. Qxd4 {[%emt 0:04:44] e5 would be deadly.} Bf6 {[%emt 0:02:06]} 20. Qc4 {[%emt 0:01:16]} fxe4 {[%emt 0:00:55][%mdl 64] Remove Defender} 21. Nxe4 {[%emt 0:01:32]} ({White should play} 21. Qxb4 $16 Bf5 22. Qc4) 21... Rxe4 $14 {[%emt 0:00:08]} 22. Qxe4 {[%emt 0:00:04]} Bf5 {[%emt 0:00:07] [#] This pair of bishops is nice.} 23. Qc4 {[%emt 0:00:32]} Bxc2 {[%emt 0:00:12]} 24. Qxc2 {[%emt 0:00:04]} Rf8 {[%emt 0:01:14]} 25. b3 {[%emt 0:03:05]} Kh8 {[%emt 0:03:25]} 26. Qe4 {[%emt 0:07:06]} Bc3 {[%emt 0:06:18]} 27. Bf3 {[%emt 0:01:43]} Be5 {[%emt 0:01:40]} 28. g3 {[%emt 0:02:33]} Qf6 {[%emt 0:00:40]} 29. Kg2 {[%emt 0:01:28]} Bd6 {[%emt 0:01:21]} 30. Rd1 {[%emt 0:01:46]} Kg7 {[%emt 0:01:04]} 31. Rd3 {[%emt 0:00:40]} Bc5 {[%emt 0:03:35]} 32. Qc4 {[%emt 0:01:18]} Qd6 {[%emt 0:00:31]} 33. Rd2 {[%emt 0:00:59][%cal Bd3d2,Bd2e2,Be2e6][%mdl 32]} Rf6 {[%emt 0:01:38]} 34. Re2 {[%emt 0:03:18]} Qf8 {[%emt 0:00:51]} 35. Qd3 {[%emt 0:02:27]} Rf7 {[%emt 0:03:38]} 36. Re6 {[%emt 0:01:39] Black is weak on the light squares} Rf5 {[%emt 0:03:35]} 37. h4 {[%emt 0:00:36] White is more active.} Bb6 $2 {[%emt 0:03:15] This move loses the game for Black.} (37... Rf6 $16 38. Qd1 Rxe6 39. dxe6 Qd6) 38. Qe4 {[%emt 0:04:36] Black must now prevent g4.} Qc5 {[%emt 0:02:58]} 39. Re7+ {[%emt 0:01:31]} Rf7 {[%emt 0:00:29]} 40. Qe5+ {[%emt 0:00:00]} ({But not} 40. Rxf7+ $6 Kxf7 41. Qe6+ Kg7 42. Qe5+ Kg8 43. Qe8+ Kg7 $16) 40... Kg8 {[%emt 0:00:00] [#]} 41. Re8+ $40 {[%emt 0:05:52][%mdl 128] White wants a kill.} Rf8 {[%emt 0:00:11]} 42. Rxf8+ {[%emt 0:03:32]} Qxf8 $2 $18 {[%emt 0:00:20][%mdl 4096] Endgame [#] KQB-KQB} (42... Kxf8 43. Qh8+ Kf7) 43. d6 $1 {[%emt 0:00:56][%mdl 512]} Qxd6 {[%emt 0:00:47]} 44. Bd5+ {[%emt 0:00:30]} Kf8 {[%emt 0:00:07]} 45. Qh8+ {[%emt 0:00:24]} Ke7 {[%emt 0:02:20]} 46. Qxh7+ {[%emt 0:01:08]} Kf6 {[%emt 0:04:47]} 47. Qf7+ {[%emt 0:03:40]} Ke5 {[%emt 0:00:06]} 48. Bf3 {[%emt 0:01:02]} Qc5 $2 {[%emt 0:05:08]} (48... a5 49. Kf1 Qd3+ 50. Kg2 Qf5 51. Qe7+ Qe6) 49. Qg7+ {[%emt 0:01:26]} (49. Qxg6 $2 {perishes.} Qxf2+ 50. Kh3 Qxf3 $19) 49... Kf5 {[%emt 0:03:38] [#]} (49... Kd6 $142 50. Qf6+ Kd7 51. Bg4+ (51. Qxg6 $2 {too greedy.} Qxf2+ 52. Kh3 Qxf3 $19) 51... Ke8 52. Qxg6+ Kf8 53. Qf6+ Ke8) 50. Bg4+ $1 {[%emt 0:00:47][%mdl 576] Deflection} Ke4 {[%emt 0:00:20]} 51. Qxg6+ {[%emt 0:00:15]} Kd4 {[%emt 0:00:23]} 52. Qf6+ {[%emt 0:01:24]} Qe5 {[%emt 0:01:11]} 53. Qxe5+ {[%emt 0:00:39]} Kxe5 {[%emt 0:00:07] KB-KB} 54. Kf3 {[%emt 0:00:25]} Bd4 {[%emt 0:01:35]} 55. Ke2 {[%emt 0:00:28]} Kf6 {[%emt 0:00:34]} 56. Bd7 {[%emt 0:00:27]} Kg6 {[%emt 0:01:10]} 57. f4 {[%emt 0:00:29]} Bc3 {[%emt 0:01:12]} 58. Kf3 {[%emt 0:00:08]} Be1 {[%emt 0:00:29]} 59. Be8+ {[%emt 0:00:31]} Kf6 {[%emt 0:00:16]} 60. h5 {[%emt 0:00:07]} Bd2 {[%emt 0:00:27]} 61. g4 {[%emt 0:00:11]} Bc1 {[%emt 0:00:14]} 62. g5+ {[%emt 0:00:05]} (62. h6 $142 Ke7 63. Bc6 Kf7 64. g5 Kf8 65. Kg4 Bb2 66. f5 Kf7 67. Bd5+ Ke7 68. f6+ Bxf6 69. gxf6+ Kxf6 70. Kh5) 62... Kg7 {[%emt 0:00:11]} 63. Ke4 {Weighted Error Value: White=0.12 (very precise) /Black=0.33} 1-0